Cogmind - Beta 16.1 @@@ ROGUE MODE // 2026.04.07 @ 00:52:30 Player: Rocket Result: Destroyed by 8R-AWN with 8R-AWN's Boregun Performance ------------- Evolutions (1) 500 Regions Visited (5) 1000 Robots Destroyed (26) 130 Value Destroyed (358) 358 Prototype IDs (0) 0 Alien Tech Used (0) 0 Bonus (83) 83 TOTAL SCORE: 2071 Bonus ------- Follower Combat Kills 83 Cogmind --------- Core Integrity 0/400 Matter 243/300 Energy 100/100 System Corruption 0% Temperature Cool (0) Movement Rolling (200) Ox8 Location -9/Exiles Parts ------- > --- POWER (1) -------- (None) > --- PROPULSION (3) --- Wheel > --- UTILITY (2) ------ Huge Storage Unit > --- WEAPON (3) ------- Scythe Scythe Scythe > --- INVENTORY (25) --- Light Ion Engine Light Treads Aluminum Leg Makeshift Leg Compact Wheel Compact Wheel Heat Sink Huge Storage Unit Medium Matter Pod (100) Large Matter Pod (150) Utility Shielding Rocket Launcher Rocket Launcher Scythe Blade Trap Peak State ------------ > --- POWER ------------ Improved Ion Engine > --- PROPULSION ------- Wheel Armored Wheel Armored Wheel > --- UTILITY ---------- Huge Storage Unit Propulsion Shielding > --- WEAPON ----------- Scythe Scythe Scythe > --- INVENTORY -------- Light Ion Engine Light Ion Engine Light Treads Aluminum Leg Makeshift Leg Wheel Wheel Wheel Wheel Compact Wheel Compact Wheel Compact Wheel Heat Sink Huge Storage Unit Medium Matter Pod Large Matter Pod Utility Shielding Small Laser Beam Rifle Heavy Assault Rifle Grenade Launcher Rocket Launcher Rocket Launcher Rocket Launcher Scythe [Rating: 21] Favorites ----------- Power Improved Ion Engine Engine Improved Ion Engine Propulsion Compact Wheel Treads Light Treads Wheel Compact Wheel Utility Huge Storage Unit Storage Huge Storage Unit Protection Propulsion Shielding Weapon Scythe Energy Gun Small Laser Launcher Grenade Launcher Slashing Weapon Scythe Build | -11 -10 -10 -9 -9 -9 ------- Run | Yrd Mat Min Mat Min Exi Slots Evolved 2 | . . . 2 . . Power . | . . . . . . Propulsion 1 | . . . 1 . . Utility . | . . . . . . Weapon 1 | . . . 1 . . Parts Attached 29 | 8 7 . 8 2 4 Power 3 | 1 . . 1 . 1 Engine 3 | 1 . . 1 . 1 Core . | . . . . . . Reactor . | . . . . . . Propulsion 14 | 4 3 . 4 2 1 Treads 2 | 2 . . . . . Leg . | . . . . . . Wheel 12 | 2 3 . 4 2 1 Hover . | . . . . . . Flight . | . . . . . . Utility 3 | 1 2 . . . . Device . | . . . . . . Storage 2 | 1 1 . . . . Processor . | . . . . . . Hackware . | . . . . . . Protection 1 | . 1 . . . . Artifact . | . . . . . . Weapon 9 | 2 2 . 3 . 2 Energy Gun 3 | 2 1 . . . . Energy Cannon . | . . . . . . Ballistic Gun . | . . . . . . Ballistic Cannon . | . . . . . . Launcher 2 | . 1 . . . 1 Special Weapon . | . . . . . . Impact Weapon . | . . . . . . Slashing Weapon 4 | . . . 3 . 1 Piercing Weapon . | . . . . . . Special Melee Weapon . | . . . . . . Unidentified Prototypes . | . . . . . . Parts Lost 11 | . . . 2 . 9 Power 3 | . . . 1 . 2 Propulsion 5 | . . . 1 . 4 Utility 1 | . . . . . 1 Weapon 2 | . . . . . 2 Highest Loss Streak 9 | . . . 1 . 9 To Critical Strikes 4 | . . . . . 4 Average Backups 17 | 1 6 9 14 24 20 Power 1 | . 1 1 1 1 2 Propulsion 7 | 1 4 4 4 9 7 Utility 3 | . . 2 3 5 5 Weapon 5 | . 1 2 5 7 4 Tool/Special . | . . . . . . Unused Backups 19 | . 2 . . 2 15 Power 4 | . . . . . 4 Propulsion 6 | . 2 . . . 4 Utility 5 | . . . . . 5 Weapon 4 | . . . . 2 2 Tool/Special . | . . . . . . Average Slot Usage (%) 97 | . 94 100 96 100 83 Engine 11 | . 14 14 9 11 8 Treads 1 | . 10 . . . . Wheel 29 | . 17 28 32 33 26 Storage 11 | . 14 14 11 11 11 Protection 10 | . 8 14 11 11 5 Energy Gun 6 | . 27 27 1 . . Launcher 3 | . . . . 5 8 Slashing Weapon 21 | . . . 31 27 23 Peak Build Rating 21 | 6 8 8 19 21 20 Average Rating 15 | 4 7 8 16 19 17 On Entrance 10 | . 6 8 8 19 19 Avg Prop Armor Cover (%) 14 | . 14 . . . . Naked Turns . | . . . . . . Heaviest Build 95 | 10 88 88 94 95 95 Greatest Support 48 | 40 40 32 48 38 34 Greatest Overweight (x) 8 | . 2 2 2 2 8 Average Overweight (x) 1 | . 1 2 1 2 2 Largest Inventory Capacity 25 | 8 25 25 25 25 25 Average Capacity 23 | 7 18 25 25 25 25 Most Carried 25 | 3 9 9 23 25 25 Average Carried 17 | 1 6 9 14 24 21 Final Capacity 25 | 8 25 25 25 25 25 Final Carried 25 | 3 9 9 23 25 15 Class Distribution -------------------- 100% | Mutant Dominant Class ---------------- Mutant | -10/Materials Mutant | -10/Mines Mutant | -9/Materials Mutant | -9/Mines Mutant | -9/Exiles Resources | -11 -10 -10 -9 -9 -9 ----------- Run | Yrd Mat Min Mat Min Exi Matter Collected 812 | 196 27 29 498 44 18 Remotely . | . . . . . . Salvage Created 729 | 28 60 29 439 137 36 Parts 50 | 2 5 5 20 18 . Haulers Intercepted 1 | . . . 1 . . Recyclers Shooed . | . . . . . . Parts Field Recycled . | . . . . . . Retrieved Matter . | . . . . . . Parts Self-Destructed . | . . . . . . Prevented . | . . . . . . Parts Restored . | . . . . . . Kills | -11 -10 -10 -9 -9 -9 ------- Run | Yrd Mat Min Mat Min Exi Combat Hostiles Destroyed 21 | . 2 3 3 7 6 Melee 7 | . . . 3 3 1 AOE 14 | . 2 3 . 4 5 Classes Destroyed 8 | 1 1 1 3 1 1 Worker 6 | 1 . . 4 1 . Tunneler 1 | . . . . 1 . Hauler 1 | . . . 1 . . Recycler 3 | . . . 2 1 . Swarmer 10 | . . 3 . 7 . Grunt 3 | . 2 . 1 . . Sentry 2 | . . . 2 . . Assembled 6 | . . . . . 6 Best Kill Streak 6 | 1 2 3 6 5 6 Combat Bots Only 6 | . 2 3 3 4 6 Max Kills in Single Turn 3 | 1 1 3 1 3 2 Gunslinging . | . . . . . . Exploded 3 | . 1 3 . 2 2 Melee 1 | . . . 1 1 1 Uniques/NPCs Destroyed . | . . . . . . Combat | -11 -10 -10 -9 -9 -9 -------- Run | Yrd Mat Min Mat Min Exi Hostile Shots Fired 108 | . 3 3 19 21 62 Missed 29 | . . 1 4 7 17 Hits 79 | . 3 2 15 14 45 Melee 5 | . . . . . 5 Projectile 74 | . 3 2 15 14 40 Critical Strikes 20 | . . . 1 . 19 Damage Taken 1303 | . 69 44 208 122 860 Core 411 | . . . 134 7 270 Absorbed by Shields . | . . . . . . Redirected to Shielding 54 | . 14 4 8 20 8 Core Remaining (%) 100 | 100 . 100 . . . Volleys Fired 17 | 4 5 1 . 3 4 Largest 2 | 2 2 2 . 1 1 Hottest 105 | 80 105 70 . 30 33 Shots Fired 24 | 8 7 2 . 3 4 Gun 13 | 8 4 1 . . . Cannon . | . . . . . . Launcher 11 | . 3 1 . 3 4 Special . | . . . . . . Kinetic . | . . . . . . Thermal 13 | 8 4 1 . . . Explosive 11 | . 3 1 . 3 4 Electromagnetic . | . . . . . . Robot Hit Streak 4 | 4 3 4 . . 2 Robot Miss Streak 1 | 1 1 . . 1 1 Penetration Max . | . . . . . . Secondary Targets . | . . . . . . Shots Hit Robots 39 | 6 5 2 14 5 7 Core Hits 35 | 2 4 3 6 10 10 Critical Kills . | . . . . . . Critical Parts Destroyed . | . . . . . . Critical Strikes . | . . . . . . Melee Attacks 37 | . . . 20 9 8 Impact . | . . . . . . Slashing 37 | . . . 20 9 8 Piercing . | . . . . . . Sneak Attacks 10 | . . . 8 2 . Combat Hostiles . | . . . . . . Follow-up Attacks 5 | . . . 1 1 3 Damage Inflicted 1856 | 64 163 138 681 401 409 Guns 114 | 64 38 12 . . . Cannons . | . . . . . . Explosions 670 | . 125 126 . 173 246 Melee 1072 | . . . 681 228 163 Ramming . | . . . . . . Kinetic . | . . . . . . Thermal 114 | 64 38 12 . . . Explosive 670 | . 125 126 . 173 246 Electromagnetic . | . . . . . . Impact . | . . . . . . Slashing 1072 | . . . 681 228 163 Piercing . | . . . . . . Highest Corruption . | . . . . . . Average Corruption . | . . . . . . Corruption Purged . | . . . . . . Corruption Blocked . | . . . . . . Overload Shots . | . . . . . . Overflow Damage 100 | . . . 100 . . Projectiles . | . . . . . . Explosions . | . . . . . . Melee 100 | . . . 100 . . Knockbacks . | . . . . . . Impact . | . . . . . . Kinetic . | . . . . . . Secondary . | . . . . . . Self-Inflicted Damage 33 | . . 29 . 4 . Shots 2 | . . 1 . 1 . Rammed . | . . . . . . Targets Rammed . | . . . . . . Kicked . | . . . . . . Crushed . | . . . . . . Highest Temperature 90 | 36 90 9 11 . . Average Temperature 26 | 20 37 6 11 . . Received Heat Transfer 123 | . 27 . 96 . . Siege Activations . | . . . . . . Martial Activations . | . . . . . . Shielding Activations . | . . . . . . Robots Disrupted . | . . . . . . Combat Hostiles . | . . . . . . Robots Corrupted . | . . . . . . Combat Hostiles . | . . . . . . Parts Fried . | . . . . . . Impact Corruptions . | . . . . . . Robots Melted . | . . . . . . Combat Hostiles . | . . . . . . Parts Melted . | . . . . . . Heat Transferred 262 | 150 87 25 . . . Parts Sabotaged . | . . . . . . Parts Stolen . | . . . . . . Parts Stripped . | . . . . . . Power Chain Reactions . | . . . . . . Alert | -11 -10 -10 -9 -9 -9 ------- Run | Yrd Mat Min Mat Min Exi Maximum Alert Level . | . . . . . . Low Security (%) 100 | 100 100 100 100 100 . Level 1 . | . . . . . . Level 2 . | . . . . . . Level 3 . | . . . . . . Level 4 . | . . . . . . Level 5 . | . . . . . . High Security . | . . . . . . Max Security . | . . . . . . Peak Influence 109 | 5 80 80 92 109 . Initial 29 | . 3 3 . 29 . Average 23 | . 20 31 51 17 . Influence Increases 628 | 5 80 77 276 190 . Destroy 0b10 Robot/C 360 | . 40 60 120 140 . Destroy 0b10 Robot/NC 60 | 5 . . 40 15 . Destroy Leader 84 | . 10 10 44 20 . Allied During Kill 10 | . . . 10 . . Successful Hack 17 | . . . 17 . . Disable Machine 30 | . 30 . . . . Destroy Structure 22 | . . 7 . 15 . Lose Combat Pursuer 45 | . . . 45 . . Influence Decreases 628 | . 75 87 200 266 . Entered New Map 56 | . 2 7 . 47 . Time Decay 512 | . 73 80 140 219 . Lost Part 20 | . . . 20 . . Lost Ally 40 | . . . 40 . . Squads Dispatched 3 | . . . 3 . . Investigation 2 | . . . 2 . . Extermination . | . . . . . . Reinforcement 1 | . . . 1 . . Assault . | . . . . . . Garrison . | . . . . . . Intercept . | . . . . . . Searches Triggered . | . . . . . . Construction Impeded . | . . . . . . Haulers Reinforced . | . . . . . . Active Scanning Responses . | . . . . . . Cargo Convoy Interrupts . | . . . . . . Stealth | -11 -10 -10 -9 -9 -9 --------- Run | Yrd Mat Min Mat Min Exi Distress Signals 1 | . . . 1 . . Communications Jammed . | . . . . . . Distress Signals . | . . . . . . Times Spotted 32 | . 4 3 10 7 8 Peak Tracking Total 9 | . 3 . 6 4 9 Tactical Retreats 2 | . . . 2 . . Traps | -11 -10 -10 -9 -9 -9 ------- Run | Yrd Mat Min Mat Min Exi Traps Triggered 2 | . 1 . 1 . . Indirectly . | . . . . . . Trap Hack Attempts . | . . . . . . Triggered . | . . . . . . Disarmed 3 | . 3 . . . . Reprogrammed . | . . . . . . Reused 1 | . . . . . 1 Traps Extracted . | . . . . . . Installed 2 | . . . . . 2 Triggered . | . . . . . . Most Traps Carried 3 | . . . . 3 3 Machines | -11 -10 -10 -9 -9 -9 ---------- Run | Yrd Mat Min Mat Min Exi Machines Disabled 4 | . 2 . . . 2 Max in Single Turn 2 | . 1 . . . 2 Machines Repaired . | . . . . . . Machines Dismantled . | . . . . . . Machines Sabotaged . | . . . . . . Overloaded Fab Kills . | . . . . . . Hacking | -11 -10 -10 -9 -9 -9 --------- Run | Yrd Mat Min Mat Min Exi Machines Accessed 4 | . 2 . 2 . . Terminals 4 | . 2 . 2 . . Fabricators . | . . . . . . Repair Stations . | . . . . . . Recycling Units . | . . . . . . Scanalyzers . | . . . . . . Garrison Access . | . . . . . . Total Hacks 11 | . 5 . 6 . . Successful 6 | . 2 . 4 . . Failed 5 | . 3 . 2 . . Catastrophic 1 | . . . 1 . . Database Lockouts . | . . . . . . Manual 11 | . 5 . 6 . . Terminals 11 | . 5 . 6 . . Fabricators . | . . . . . . Repair Stations . | . . . . . . Recycling Units . | . . . . . . Scanalyzers . | . . . . . . Garrison Access . | . . . . . . Terminal Hacks 3 | . 1 . 2 . . Robot Analysis 1 | . . . 1 . . Branch Access Points 1 | . . . 1 . . Disarm Traps 1 | . 1 . . . . Fabricator Hacks . | . . . . . . Repair Station Hacks . | . . . . . . Recycling Unit Hacks . | . . . . . . Scanalyzer . | . . . . . . Garrison Access Hacks . | . . . . . . Unauthorized Hacks 3 | . 1 . 2 . . Terminals 3 | . 1 . 2 . . Botnet 3 | . 1 . 2 . . Fabricators . | . . . . . . Repair Stations . | . . . . . . Recycling Units . | . . . . . . Scanalyzers . | . . . . . . Garrison Access . | . . . . . . Data Cores Recovered . | . . . . . . Used . | . . . . . . Hacking Detections 3 | . 1 . 2 . . Full Trace Events . | . . . . . . Feedback Events . | . . . . . . Feedback Blocked . | . . . . . . Robot Schematics Acquired . | . . . . . . Robots Built . | . . . . . . Authchips . | . . . . . . Time . | . . . . . . Total Robot Build Rating . | . . . . . . Part Schematics Acquired . | . . . . . . Parts Built . | . . . . . . Authchips . | . . . . . . Time . | . . . . . . Total Part Build Rating . | . . . . . . Part Studies Acquired . | . . . . . . Parts Repaired . | . . . . . . Time . | . . . . . . Parts Recycled . | . . . . . . Recycled Matter . | . . . . . . Retrieved Matter . | . . . . . . Retrieved Components . | . . . . . . Parts Scanalyzed . | . . . . . . Part Schematics Acquired . | . . . . . . Parts Damaged . | . . . . . . Bothacking | -11 -10 -10 -9 -9 -9 ------------ Run | Yrd Mat Min Mat Min Exi Used RIF Installer . | . . . . . . Robots Hacked . | . . . . . . Non-combat . | . . . . . . Combat . | . . . . . . Robot Hacks Applied . | . . . . . . Relay Couplers Released . | . . . . . . Fabnet Peak Effective % . | . . . . . . Robots Rewired . | . . . . . . Allies Hacked . | . . . . . . Hacks Repelled . | . . . . . . Allies | -11 -10 -10 -9 -9 -9 -------- Run | Yrd Mat Min Mat Min Exi Total Allies 2 | . . 2 . . . Largest Group 2 | . . 2 2 . . Highest-Rated Group 45 | . . 45 45 . . Highest-Rated Ally 31 | . . 31 31 . . Total Orders . | . . . . . . Ally Attacks 8 | . . . 8 . . Total Damage 128 | . . . 128 . . Kills 4 | . . . 4 . . Allies Corrupted . | . . . . . . Allies Melted . | . . . . . . Intel | -11 -10 -10 -9 -9 -9 ------- Run | Yrd Mat Min Mat Min Exi Active Infowar (turns) . | . . . . . . Robot Analysis Total 1 | . . . 1 . . Derelict Logs Recovered 1 | . . . . 1 . Drone Launches . | . . . . . . Drone Recoveries . | . . . . . . Exploration | -11 -10 -10 -9 -9 -9 ------------- Run | Yrd Mat Min Mat Min Exi Turns Passed 2229 | 109 283 224 339 1165 109 Spaces Moved 1648 | 55 177 164 221 973 58 Core 2 | 2 . . . . . Treads 99 | 47 52 . . . . Legs . | . . . . . . Wheels 1547 | 6 125 164 221 973 58 Hover . | . . . . . . Flight . | . . . . . . Fastest Speed 50 | 50 100 130 115 116 116 Average Speed 121 | 148 137 130 115 116 122 Slowest Speed 200 | 160 160 130 130 120 200 Overloaded Moves . | . . . . . . Propulsion Burnouts . | . . . . . . Robots Hopped . | . . . . . . Potential Cave-ins . | . . . . . . Cave-ins Triggered . | . . . . . . Exploration Rate (%) 36 | 5 35 42 27 99 11 Regions Visited 5 Branch Regions 3 Pre-discovered Areas . | . . . . . . Known Exits Taken 1 | . . . 1 . . Unknown Exits Taken 4 | 1 1 1 . 1 . Scrap Searched 1 | . . . . 1 . Spaces Dug 1 | . . . . 1 . Terrain Destroyed 52 | . . 7 . 15 30 Melee 1 | . . . . 1 . Projectile . | . . . . . . AOE 51 | . . 7 . 14 30 Terrain Rammed . | . . . . . . Walls Destroyed . | . . . . . . Machines Disabled . | . . . . . . Actions | -11 -10 -10 -9 -9 -9 --------- Run | Yrd Mat Min Mat Min Exi Total 1815 | 71 209 172 277 998 88 Wait 25 | . . 6 17 2 . Move 1643 | 54 176 163 220 972 58 Hop . | . . . . . . Pick Up 37 | 3 10 . 14 6 4 Fast Attach 18 | 8 4 . 4 2 . Attach 7 | . . . 2 . 5 Detach 1 | . 1 . . . . Swap 11 | . 5 2 2 1 1 Drop 27 | 2 8 . 2 6 9 Fire 17 | 4 5 1 . 3 4 Melee 27 | . . . 16 6 5 Ram . | . . . . . . Kick . | . . . . . . Crush . | . . . . . . Escape Stasis . | . . . . . . Rewire . | . . . . . . Trap 2 | . . . . . 2 Miscellaneous . | . . . . . . Route ------- -11/Scrapyard -10/Materials -10/Mines -9/Materials (discovered 2 exits: *Min x2) -9/Mines (discovered 3 exits: [*Mat x2] / [*Exi]) -9/Exiles History --------- Turn | Location | Event 17 | -11/Scrapyard | Discovered new exit (range 14) 110 | -11/Scrapyard | Entered Materials 287 | -10/Materials | Discovered new exit (range 16) 321 | -10/Materials | Build established: Mutant 393 | -10/Materials | Entered Mines 602 | -10/Mines | Discovered new exit (range 5) 617 | -10/Mines | Entered Materials 617 | -9/Materials | Accompanied by 2 allies 617 | -9/Materials | Evolved 2 slots: Propulsion x1, Weapon x1 622 | -9/Materials | Led the pair of lost Derelicts to an unsafe place 887 | -9/Materials | Discovered new exit (range 13) 938 | -9/Materials | Identified exit to Mines 956 | -9/Materials | Entered Mines 972 | -9/Mines | Learned 4 Materials zone layouts 1091 | -9/Mines | Discovered new exit (range 3) 1117 | -9/Mines | Discovered new exit (range 7) 1828 | -9/Mines | Found a hidden stash of uninstalled traps 2116 | -9/Mines | Deemed a non-threat by the Exiles lab entrance 2116 | -9/Mines | Discovered new exit (range 5) 2121 | -9/Mines | Entered Exiles 2156 | -9/Exiles | Met 8R-AWN 2170 | -9/Exiles | Warned about trapping Exiles lab 2176 | -9/Exiles | Attacked by the Exiles 2199 | -9/Exiles | Core integrity fell below 50% 2215 | -9/Exiles | Core integrity fell below 20% 2230 | -9/Exiles | Destroyed by 8R-AWN with 8R-AWN's Boregun Last Messages --------------- 02217_ Wall collapses. 02218_ HV Slug penetrates Earth. 02218_ Penetrated by HV Slug. 02218_ HV Slug penetrates Wall. 02221_ Penetrated by HV Slug. 02221_ HV Slug penetrates Wall. 02221_ Penetrated by HV Slug. 02221_ HV Slug penetrates Wall. 02224_ HV Slug penetrates Earth. 02226_ Scythe follow-up attack on 8R-AWN. 02227_ Penetrated by HV Slug. 02227_ Critical hit (Destroy). 02227_ Wheel destroyed. 02227_ HV Slug penetrates Wall. 02227_ Penetrated by HV Slug. 02227_ HV Slug penetrates Wall. 02228_ The unstable cave ceiling collapses. 02230_ Penetrated by HV Slug. 02230_ HV Slug penetrates Wall. 02230_ Penetrated by HV Slug. Map ----- +----------------------------------------------------+ | ?????????????????????????????????????????????????? | | ?????????????????????????????????????????????????? | | ?????????????????????????????????????????????????? | | ?????????????????????????????????????????????????? | | ?????????????????????????????????????????????????? | | ?????????????????????????????????????????????????? | | ?????????????????????????????????????????????????? | | ?????????????????????????????????????????????????? | | ?????????????????????????????????????????????????? | | ?????????????????????????????????????????????????? | | ?????????????????????????????????????????????????? | | ?????????????????????????????????????????????????? | | ?????????????????????????????????????????????????? | | ?????????????????????????????????????????????????? | | ?????????????????????????????????????????????????? | | ???????????????????????????????????????????? ???? | | ???????????????????????????????????????????? ?? | | ???????????????????????????????????????????# #?? | | ?????????????????????????????????????????## ##? | | ?????????????????????####????????????????# #? | | ???????????????????### ##??????????????# #? | | ???????????????????# ######????????## ?? | | ????????????????#### #???????## #??? | | ???????????????## # #????????# #??? | | ???????????????# #??????### #???? | | ????????????????# g@ ######## #???? | | ????????????????# "## #????? | | ????????????????# = ##???? | | ????????????? = #???? | | ??????????? # # ##??? | | ??????????? ""###""" ##;; ###? | | ?????????? #"""#??#########;#;; = ## | | ??????????? #####??????????? # ###;;" | | ??????????? ????????????????##?# #??#""# | | ???????????? ?????????????????????# #???#### | | ???????????????????????????????????# ??????### | | ????????????????????????????????????##??????#" | | ????????????????????????????????????????????#### | | ???????????????????????????????????????????????# | | ???????????????????????????????????????????????## | | ????????????????????????????????????????????????## | | ?????????????????????????????????????????????????? | | ?????????????????????????????????????????????????? | | ?????????????????????????????????????????????????? | | ?????????????????????????????????????????????????? | | ?????????????????????????????????????????????????? | | ?????????????????????????????????????????????????? | | ?????????????????????????????????????????????????? | | ?????????????????????????????????????????????????? | | ?????????????????????????????????????????????????? | +----------------------------------------------------+ Best States ------------- Heat Dissipation 28 Energy Generation 12 Energy Capacity 265 Matter Stores 300 Matter Capacity 300 Sight Range 16 Terrain Scan Density 10 Propulsion Shielding 33 Evasion (%) 42 Recoil Reduction 2 Item Schematics ----------------- None Robot Schematics ------------------ None Fabricated ------------ Nothing Repaired ---------- Nothing Studied --------- None Alien Tech Used ----------------- None Achievements -------------- None Challenges ------------ None Game ------ Seed TrackerGreatBallwheel Manual? 0 Play Time 00:12:10 Cumulative 136.7 hours Start 2026.04.07 @ 00:41:56 End 2026.04.07 @ 00:52:30 Sessions 1 Manual Loads 0 Difficulty Rogue Special Mode None Game No. 193 Rogue 193 Adventurer 0 Explorer 0 Win Type - Total 1 Types 1/0/0/0/0/0/0/0/0/0 Lore% 38 Gallery% 49 Achievement% 38 Wizard Run 0 Options --------- Layout 1 ASCII 0 Keyboard 0 Movement Mouse Keybinds 0 Fullscreen 2 Font 24/Smallcaps Map View 50x35 Zoom Use 26% Tactical HUD 1 Map Filters NONE Filters NONE Steam 1 RUN: 8d0544a8-0435-4a57-a63f-4bd934fcccc1